[Event "Belgrade Spring Open 2021"]
[Site "Belgrade"]
[Date "2021.04.03"]
[Round "2.10"]
[White "Novakovic, Aleksej"]
[Black "Potpara, Nikola"]
[Result "0-1"]
[ECO "A45"]
[WhiteElo "2079"]
[BlackElo "2370"]
[Annotator "ChessBase"]
[PlyCount "60"]
[EventDate "2021.04.02"]
[EventType "swiss"]
[EventCountry "SRB"]
[SourceTitle "playchess.com"]
[Source "ChessBase"]
[SourceQuality "1"]
[TimeControl "5400+30"]

1. d4 {[%emt 0:00:00]} Nf6 {[%emt 0:23:36]} 2. Bf4 {[%emt 0:00:00]} c5 {[%emt 0:00:16]} 3. e3 {[%emt 0:02:52]} d6 {[%emt 0:03:08]} 4. c3 {[%emt 0:02:52]} Nbd7 {[%emt 0:02:57]} 5. Nf3 {[%emt 0:03:57]} Nh5 {[%emt 0:01:08]} 6. Bg3 {[%emt 0:00:45]} g6 {[%emt 0:00:28]} 7. Bc4 {[%emt 0:11:29]} e6 {[%emt 0:13:41]} 8. d5 {[%emt 0:25:58]} e5 {[%emt 0:00:41]} 9. Bh4 {[%emt 0:04:33]} Be7 {[%emt 0:00:51]} 10. Bxe7 {[%emt 0:00:19]} Qxe7 {[%emt 0:00:09]} 11. Be2 {[%emt 0:14:15]} f5 {[%emt 0:09:13]} 12. c4 {[%emt 0:03:35]} O-O {[%emt 0:00:19]} 13. Nc3 {[%emt 0:02:35]} e4 {[%emt 0:05:02]} 14. Nd2 {[%emt 0:00:19]} Nhf6 {[%emt 0:00:07]} 15. Qc2 {[%emt 0:03:17]} Ne5 {[%emt 0:00:59]} 16. g3 {[%emt 0:06:18]} Bd7 {[%emt 0:00:35]} 17. h3 {[%emt 0:04:00]} h5 {[%emt 0:02:46]} 18. O-O-O {[%emt 0:05:15]} a6 {[%emt 0:00:35]} 19. Rde1 {[%emt 0:01:32]} b5 {[%emt 0:01:54]} 20. f4 {[%emt 0:01:43]} exf3 {[%emt 0:01:11]} 21. Nxf3 {[%emt 0:00:12]} Kg7 {[%emt 0:09:16]} 22. Nd2 {[%emt 0:04:10]} Rab8 {[%emt 0:08:05]} 23. b3 {[%emt 0:00:55]} b4 {[%emt 0:10:22]} 24. Nd1 {[%emt 0:00:12]} Rbe8 {[%emt 0:00:46]} 25. Nf2 {[%emt 0:00:30]} a5 {[%emt 0:00:25]} 26. e4 {[%emt 0:00:50]} a4 {[%emt 0:01:00]} 27. Kb2 {[%emt 0:00:33]} fxe4 {[%emt 0:01:34]} 28. Nfxe4 {[%emt 0:00:29]} Nxe4 {[%emt 0:01:10]} 29. Nxe4 {[%emt 0:00:30]} Bf5 {[%emt 0:00:58]} 30. Bd3 {[%emt 0:00:08]} Nxd3+ {[%emt 0:01:48]} 0-1

[Event "Belgrade Spring Open 2021"]
[Site "Belgrade"]
[Date "2021.04.04"]
[Round "3.1"]
[White "Martirosyan, Haik M."]
[Black "Kamer, Kayra"]
[Result "1-0"]
[ECO "D03"]
[WhiteElo "2620"]
[BlackElo "2339"]
[Annotator "ChessBase"]
[PlyCount "50"]
[EventDate "2021.04.02"]
[EventType "swiss"]
[EventCountry "SRB"]
[SourceTitle "playchess.com"]
[Source "ChessBase"]
[SourceQuality "1"]
[TimeControl "5400+30"]

1. d4 {[%emt 1:30:30]} Nf6 {[%emt 1:30:30]} 2. Bg5 {[%emt 0:00:30]} g6 {[%emt 0:00:00]} 3. Bxf6 {[%emt 0:00:00]} exf6 {[%emt 0:01:00]} 4. e3 {[%emt 0:00:00]} d5 {[%emt 0:00:00]} 5. Nf3 {[%emt 0:01:30]} c5 {[%emt 0:01:00]} 6. dxc5 {[%emt 0:00:00]} Bxc5 {[%emt 0:00:30]} 7. Nbd2 {[%emt 0:01:00]} Nc6 {[%emt 0:00:00]} 8. c3 {[%emt 0:00:30]} O-O {[%emt 0:01:00]} 9. Nb3 {[%emt 0:00:30]} Bb6 {[%emt 0:00:30]} 10. g3 {[%emt 0:00:30]} Bf5 {[%emt 0:00:30]} 11. Bg2 {[%emt 0:00:00]} Be4 {[%emt 0:00:00]} 12. O-O {[%emt 0:01:00]} Qe7 {[%emt 0:01:00]} 13. Qe2 {[%emt 0:00:30]} Rfe8 {[%emt 0:00:30]} 14. Rfd1 {[%emt 0:00:30]} Rad8 {[%emt 0:00:30]} 15. Nfd4 {[%emt 0:00:30]} Bxg2 {[%emt 0:00:30]} 16. Nxc6 {[%emt 0:00:30]} bxc6 {[%emt 0:00:00]} 17. Kxg2 {[%emt 0:00:00]} Qe4+ 18. Qf3 {[%emt 0:01:00]} f5 {[%emt 0:00:00]} 19. Qxe4 fxe4 {[%emt 0:02:00]} 20. Rd2 {[%emt 0:01:00]} Kf8 {[%emt 0:00:30]} 21. Rc1 {[%emt 0:00:30]} Ke7 {[%emt 0:00:30]} 22. c4 {[%emt 0:00:30]} Ke6 {[%emt 0:00:30]} 23. Rdc2 {[%emt 0:00:30]} Re7 {[%emt 0:00:30]} 24. Kf1 {[%emt 0:00:30]} f5 {[%emt 0:00:30]} 25. Ke2 {[%emt 0:00:00]} g5 {[%emt 0:00:00]} 1-0

[Event "Belgrade Spring Open 2021"]
[Site "Belgrade"]
[Date "2021.04.04"]
[Round "4.4"]
[White "Ozsakallioglu, Okan"]
[Black "Thybo, Jesper Sondergaard"]
[Result "1/2-1/2"]
[ECO "E61"]
[WhiteElo "2249"]
[BlackElo "2568"]
[Annotator "ChessBase"]
[PlyCount "181"]
[EventDate "2021.04.02"]
[EventType "swiss"]
[EventCountry "SRB"]
[SourceTitle "playchess.com"]
[Source "ChessBase"]
[SourceQuality "1"]
[TimeControl "5400+30"]

1. e4 {[%emt 0:07:14]} c6 {[%emt 0:00:00]} 2. d4 {[%emt 0:00:15]} d5 {[%emt 0:00:00]} 3. exd5 {[%emt 0:00:28]} cxd5 {[%emt 0:00:00]} 4. c4 {[%emt 0:00:04]} Nf6 {[%emt 0:01:11]} 5. Nc3 {[%emt 0:01:39]} g6 {[%emt 0:03:44]} 6. Nf3 {[%emt 0:06:23]} Bg7 {[%emt 0:00:55]} 7. h3 {[%emt 0:05:36]} O-O {[%emt 0:01:15]} 8. Be2 {[%emt 0:00:27]} dxc4 {[%emt 0:18:14]} 9. Bxc4 {[%emt 0:00:13]} b6 {[%emt 0:00:19]} 10. O-O {[%emt 0:09:09]} Bb7 {[%emt 0:03:24]} 11. Be3 {[%emt 0:07:59]} Nc6 {[%emt 0:01:25]} 12. Qe2 {[%emt 0:00:20]} Nb4 {[%emt 0:05:51]} 13. a3 {[%emt 0:08:09]} Nbd5 {[%emt 0:00:19]} 14. Rac1 {[%emt 0:00:24]} Nxc3 {[%emt 0:10:33]} 15. Rxc3 {[%emt 0:02:14]} Nd5 {[%emt 0:01:26]} 16. Rc2 {[%emt 0:02:19]} Rc8 {[%emt 0:03:38]} 17. Rfc1 {[%emt 0:00:18]} e6 {[%emt 0:01:44]} 18. Bg5 {[%emt 0:09:15]} Qd6 {[%emt 0:04:27]} 19. Ba6 {[%emt 0:00:15]} Rxc2 {[%emt 0:03:22]} 20. Rxc2 {[%emt 0:00:40]} Ba8 {[%emt 0:01:41]} 21. Qd2 {[%emt 0:07:11]} Nc7 {[%emt 0:01:56]} 22. Be2 {[%emt 0:00:05]} Bxf3 {[%emt 0:01:11]} 23. Bxf3 {[%emt 0:01:38]} Nb5 {[%emt 0:00:02]} 24. d5 {[%emt 0:00:27]} Nd4 {[%emt 0:02:36]} 25. dxe6 {[%emt 0:00:55]} Qxe6 {[%emt 0:03:12]} 26. Rc7 {[%emt 0:00:23]} Nxf3+ {[%emt 0:05:38]} 27. gxf3 {[%emt 0:00:06]} Qxh3 {[%emt 0:00:36]} 28. Qe2 {[%emt 0:08:24]} Bd4 {[%emt 0:08:59]} 29. Bf4 {[%emt 0:05:13]} Qh4 {[%emt 0:07:38]} 30. Bh2 {[%emt 0:00:06]} b5 {[%emt 0:02:21]} 31. Kg2 {[%emt 0:00:13]} Qg5+ {[%emt 0:07:53]} 32. Bg3 {[%emt 0:00:08]} h5 {[%emt 0:00:00]} 33. Qe4 {[%emt 0:01:12]} Bf6 {[%emt 0:00:00]} 34. Kh3 {[%emt 0:05:56]} a6 {[%emt 0:00:00]} 35. b3 {[%emt 0:01:17]} Rd8 {[%emt 0:00:00]} 36. a4 {[%emt 0:04:05]} h4 {[%emt 0:00:00]} 37. Bh2 {[%emt 0:00:36]} Qd5 {[%emt 0:02:01]} 38. Qxd5 {[%emt 0:00:29]} Rxd5 {[%emt 0:00:01]} 39. Rc6 {[%emt 0:00:16]} Kg7 {[%emt 0:00:59]} 40. Rxa6 {[%emt 0:00:11]} Rd3 {[%emt 0:00:26]} 41. Kg2 {[%emt 0:04:36]} Rxb3 {[%emt 0:00:51]} 42. axb5 {[%emt 0:00:11]} Rxb5 {[%emt 0:00:01]} 43. Bf4 {[%emt 0:00:20]} Rb2 {[%emt 0:01:01]} 44. Be3 {[%emt 0:00:18]} Rc2 {[%emt 0:00:13]} 45. Kh3 {[%emt 0:00:29]} g5 {[%emt 0:00:26]} 46. Ra5 {[%emt 0:00:41]} Kg6 {[%emt 0:00:25]} 47. Ra6 {[%emt 0:00:05]} Rc4 {[%emt 0:00:38]} 48. Rb6 {[%emt 0:00:48]} Ra4 {[%emt 0:00:27]} 49. Rc6 {[%emt 0:00:15]} Kg7 {[%emt 0:00:41]} 50. Rc5 {[%emt 0:00:05]} Be7 {[%emt 0:00:34]} 51. Re5 {[%emt 0:01:27]} Bf6 {[%emt 0:00:41]} 52. Rc5 {[%emt 0:00:45]} Kg6 {[%emt 0:00:01]} 53. Rc6 {[%emt 0:00:11]} Rb4 {[%emt 0:00:34]} 54. Ra6 {[%emt 0:00:06]} Rb5 {[%emt 0:00:48]} 55. f4 {[%emt 0:01:41]} Kf5 {[%emt 0:00:08]} 56. fxg5 {[%emt 0:00:05]} Bxg5 {[%emt 0:00:03]} 57. Bxg5 {[%emt 0:01:53]} Kxg5 {[%emt 0:00:02]} 58. Ra3 {[%emt 0:01:18]} Rf5 {[%emt 0:00:48]} 59. Kg2 {[%emt 0:00:16]} Kg4 {[%emt 0:00:15]} 60. Ra4+ {[%emt 0:00:45]} Rf4 {[%emt 0:00:12]} 61. f3+ {[%emt 0:00:04]} Kg5 {[%emt 0:00:10]} 62. Ra8 {[%emt 0:00:20]} Rd4 {[%emt 0:01:44]} 63. Rg8+ {[%emt 0:01:57]} Kf5 {[%emt 0:00:01]} 64. Rh8 {[%emt 0:00:15]} Rf4 {[%emt 0:00:38]} 65. Kf2 {[%emt 0:00:24]} Kg6 {[%emt 0:01:16]} 66. Kg2 {[%emt 0:00:20]} f5 {[%emt 0:00:10]} 67. Rg8+ {[%emt 0:00:24]} Kf6 {[%emt 0:00:31]} 68. Rf8+ {[%emt 0:00:11]} Kg7 {[%emt 0:00:01]} 69. Rb8 {[%emt 0:00:07]} Kh6 {[%emt 0:01:00]} 70. Rh8+ {[%emt 0:00:13]} Kg6 {[%emt 0:00:22]} 71. Rg8+ {[%emt 0:00:05]} Kf6 {[%emt 0:00:25]} 72. Rf8+ {[%emt 0:00:06]} Ke7 {[%emt 0:00:02]} 73. Rh8 {[%emt 0:00:05]} Kf7 {[%emt 0:00:19]} 74. Rh6 {[%emt 0:00:06]} Kg7 {[%emt 0:00:10]} 75. Rb6 {[%emt 0:00:52]} Rd4 {[%emt 0:00:21]} 76. Kh3 {[%emt 0:00:10]} Rc4 {[%emt 0:00:18]} 77. Ra6 {[%emt 0:00:05]} Kf7 {[%emt 0:00:16]} 78. Rh6 {[%emt 0:00:10]} Rf4 {[%emt 0:00:10]} 79. Kg2 {[%emt 0:00:06]} Ke7 {[%emt 0:00:13]} 80. Ra6 {[%emt 0:00:09]} Rb4 {[%emt 0:00:34]} 81. Rh6 {[%emt 0:00:07]} Rb2+ {[%emt 0:00:28]} 82. Kh3 {[%emt 0:00:17]} Rf2 {[%emt 0:00:07]} 83. Ra6 {[%emt 0:00:33]} Rxf3+ {[%emt 0:00:53]} 84. Kxh4 {[%emt 0:00:05]} Rf1 {[%emt 0:00:14]} 85. Kg3 {[%emt 0:00:22]} Kf7 {[%emt 0:00:18]} 86. Rb6 {[%emt 0:00:07]} Re1 {[%emt 0:00:14]} 87. Kf4 {[%emt 0:00:09]} Re6 {[%emt 0:00:04]} 88. Rb5 {[%emt 0:00:03]} Rf6 {[%emt 0:00:10]} 89. Rxf5 {[%emt 0:00:05]} Ke6 {[%emt 0:00:03]} 90. Rxf6+ {[%emt 0:00:02]} Kxf6 {[%emt 0:00:06]} 91. Ke4 {[%emt 0:09:04]} 1/2-1/2

[Event "Belgrade Spring Open 2021"]
[Site "Belgrade"]
[Date "2021.04.04"]
[Round "4.7"]
[White "Kanov, Nikola"]
[Black "Milanovic, Slavisa"]
[Result "1/2-1/2"]
[ECO "C02"]
[WhiteElo "2140"]
[BlackElo "2301"]
[Annotator "RC"]
[PlyCount "24"]
[EventDate "2021.04.02"]
[EventType "swiss"]
[EventCountry "SRB"]
[SourceTitle "playchess.com"]
[Source "ChessBase"]
[SourceQuality "1"]
[TimeControl "5400+30"]

1. e4 {[%emt 0:00:00]} e6 {[%emt 0:00:00]} 2. d4 {[%emt 0:00:00]} d5 {[%emt 0:00:00]} 3. e5 {[%emt 0:00:00]} c5 {[%emt 0:00:04]} 4. c3 {[%emt 0:00:06]} Qb6 {[%emt 0:00:07]} 5. Nf3 {[%emt 0:00:05]} Nc6 {[%emt 0:00:05]} 6. Be2 {[%emt 0:00:05]} cxd4 {[%emt 0:00:12]} 7. cxd4 {[%emt 0:00:01]} Nh6 {[%emt 0:01:06]} 8. Nc3 {[%emt 0:00:17]} Nf5 {[%emt 0:00:07]} 9. Na4 {[%emt 0:00:15]} Qa5+ {[%emt 0:01:04]} 10. Nc3 {[%emt 0:00:22]} Qb6 {[%emt 0:07:14]} 11. Na4 {[%emt 0:00:05]} Qa5+ {[%emt 0:00:11]} 12. Nc3 {[%emt 0:00:09]} Qb6 {[%emt 0:01:02]} 1/2-1/2

[Event "Belgrade Spring Open 2021"]
[Site "Belgrade"]
[Date "2021.04.04"]
[Round "4.8"]
[White "Velickovic, Sasa"]
[Black "Janjic, Stefan"]
[Result "1/2-1/2"]
[ECO "C00"]
[WhiteElo "2274"]
[BlackElo "2176"]
[Annotator "ChessBase"]
[PlyCount "90"]
[EventDate "2021.04.02"]
[EventType "swiss"]
[EventCountry "SRB"]
[SourceTitle "playchess.com"]
[Source "ChessBase"]
[SourceQuality "1"]
[TimeControl "5400+30"]

1. e4 {[%emt 0:00:00]} e6 {[%emt 0:00:00]} 2. Qe2 {[%emt 0:02:51]} c5 {[%emt 0:01:15]} 3. g3 {[%emt 0:00:40]} Nc6 {[%emt 0:00:48]} 4. Bg2 {[%emt 0:00:58]} Nge7 {[%emt 1:29:57]} 5. c3 {[%emt 1:28:01]} g6 {[%emt 0:00:43]} 6. d3 {[%emt 1:25:36]} Bg7 {[%emt 0:00:24]} 7. h4 {[%emt 0:00:34]} h6 {[%emt 0:02:26]} 8. f4 {[%emt 0:08:27]} h5 {[%emt 1:27:33]} 9. Nh3 {[%emt 0:08:03]} b6 {[%emt 0:02:28]} 10. O-O {[%emt 0:02:58]} d5 {[%emt 0:06:18]} 11. f5 {[%emt 0:05:00]} gxf5 {[%emt 0:01:46]} 12. exf5 {[%emt 0:01:33]} Be5 {[%emt 0:05:49]} 13. fxe6 {[%emt 0:13:16]} Bxe6 {[%emt 0:01:01]} 14. Bf4 {[%emt 0:05:48]} Qd6 {[%emt 0:04:09]} 15. Na3 {[%emt 0:03:31]} Bg4 {[%emt 1:07:18]} 16. Qe1 {[%emt 0:09:07]} f6 {[%emt 0:05:27]} 17. Bxe5 {[%emt 0:02:23]} Nxe5 {[%emt 0:08:26]} 18. Nf4 {[%emt 0:01:02]} O-O-O {[%emt 0:05:35]} 19. d4 {[%emt 0:04:56]} N5g6 {[%emt 0:03:49]} 20. Nxg6 {[%emt 0:01:46]} Nxg6 {[%emt 0:00:14]} 21. Qf2 {[%emt 0:00:25]} f5 {[%emt 0:01:19]} 22. dxc5 {[%emt 0:00:23]} Qxc5 {[%emt 0:00:34]} 23. Nc2 {[%emt 0:02:07]} Qxf2+ {[%emt 0:30:10]} 24. Rxf2 {[%emt 0:00:45]} f4 {[%emt 0:00:55]} 25. gxf4 {[%emt 0:00:03]} Nxh4 {[%emt 0:00:34]} 26. Nd4 {[%emt 0:23:08]} Nxg2 {[%emt 0:01:59]} 27. Kxg2 {[%emt 0:03:33]} Rhg8 {[%emt 0:26:15]} 28. Re1 {[%emt 0:01:43]} Bf5+ {[%emt 0:05:05]} 29. Kh2 {[%emt 0:01:23]} Be4 {[%emt 0:00:59]} 30. Rg1 {[%emt 0:00:42]} Kd7 {[%emt 0:03:06]} 31. Rg3 {[%emt 0:04:58]} h4 {[%emt 0:05:45]} 32. Rxg8 {[%emt 0:00:18]} Rxg8 {[%emt 0:00:26]} 33. Kh3 {[%emt 0:00:14]} Rh8 {[%emt 0:00:55]} 34. Rh2 {[%emt 0:04:06]} Ke7 {[%emt 0:03:11]} 35. Kg4 {[%emt 0:02:46]} Kf6 {[%emt 0:00:42]} 36. a3 {[%emt 0:01:55]} Rh7 {[%emt 0:09:16]} 37. a4 {[%emt 0:01:54]} Rg7+ {[%emt 0:02:42]} 38. Kxh4 {[%emt 0:00:09]} Rg1 {[%emt 0:00:09]} 39. Re2 {[%emt 0:01:55]} Ra1 {[%emt 0:00:45]} 40. Kg3 {[%emt 0:00:33]} Rxa4 {[%emt 0:00:40]} 41. Kf2 {[%emt 0:00:44]} Ra1 {[%emt 0:01:05]} 42. Re1 {[%emt 0:01:13]} Ra2 {[%emt 0:05:13]} 43. Re2 {[%emt 0:00:07]} Ra1 {[%emt 0:00:02]} 44. Re1 {[%emt 0:01:05]} Ra2 {[%emt 0:00:03]} 45. Re2 {[%emt 0:00:05]} Ra1 {[%emt 0:00:05]} 1/2-1/2

[Event "Belgrade Spring Open 2021"]
[Site "Belgrade"]
[Date "2021.04.05"]
[Round "5.2"]
[White "Kazakouski, Valery"]
[Black "Milosevic, Milos"]
[Result "1/2-1/2"]
[ECO "A14"]
[WhiteElo "2476"]
[BlackElo "2334"]
[Annotator "ChessBase"]
[PlyCount "91"]
[EventDate "2021.04.02"]
[EventType "swiss"]
[EventCountry "SRB"]
[SourceTitle "playchess.com"]
[Source "ChessBase"]
[SourceQuality "1"]
[TimeControl "5400+30"]

1. Nf3 {[%emt 1:30:30]} Nf6 {[%emt 0:09:00]} 2. c4 {[%emt 0:00:30]} c5 {[%emt 1:22:00]} 3. b3 {[%emt 0:00:00]} Nc6 {[%emt 0:00:30]} 4. Bb2 {[%emt 0:01:00]} e6 {[%emt 0:00:30]} 5. g3 {[%emt 0:00:00]} Be7 {[%emt 0:00:00]} 6. Bg2 {[%emt 0:00:00]} O-O {[%emt 0:00:00]} 7. O-O {[%emt 0:00:00]} d5 {[%emt 0:01:30]} 8. e3 {[%emt 0:02:00]} b6 {[%emt 0:00:00]} 9. Nc3 {[%emt 0:00:00]} Bb7 {[%emt 0:00:00]} 10. cxd5 {[%emt 0:00:00]} exd5 {[%emt 0:00:00]} 11. d4 {[%emt 0:00:00]} Rc8 12. Rc1 {[%emt 0:02:00]} Re8 {[%emt 0:02:30]} 13. Ne5 {[%emt 0:00:30]} Bf8 {[%emt 0:00:30]} 14. Nxc6 {[%emt 0:00:30]} Bxc6 {[%emt 0:00:30]} 15. dxc5 {[%emt 0:00:00]} bxc5 {[%emt 0:00:00]} 16. Ne2 {[%emt 0:01:00]} Ne4 {[%emt 0:01:00]} 17. Nf4 {[%emt 0:00:30]} a5 {[%emt 0:00:30]} 18. Qd3 {[%emt 0:00:30]} Rc7 {[%emt 0:00:30]} 19. Rfd1 {[%emt 0:00:00]} Rd7 {[%emt 0:00:30]} 20. Qc2 {[%emt 0:01:00]} Bb5 {[%emt 0:00:30]} 21. Ba3 {[%emt 0:00:30]} Nf6 {[%emt 0:00:30]} 22. Qf5 {[%emt 0:00:30]} g6 {[%emt 0:00:00]} 23. Qb1 {[%emt 0:00:30]} d4 {[%emt 0:00:00]} 24. exd4 {[%emt 0:00:30]} cxd4 {[%emt 0:01:30]} 25. Bxf8 {[%emt 0:00:00]} Kxf8 {[%emt 0:00:30]} 26. a4 {[%emt 0:00:00]} Be2 {[%emt 0:00:30]} 27. Nxe2 {[%emt 0:00:00]} Rxe2 {[%emt 0:00:00]} 28. Qd3 {[%emt 0:02:00]} Qe7 {[%emt 0:01:00]} 29. Bf3 {[%emt 0:00:30]} Re5 {[%emt 0:00:00]} 30. Rc4 {[%emt 0:00:30]} Re1+ {[%emt 0:00:00]} 31. Rxe1 {[%emt 0:00:00]} Qxe1+ {[%emt 0:00:00]} 32. Kg2 {[%emt 0:01:00]} Qe5 {[%emt 0:00:00]} 33. b4 {[%emt 0:00:00]} axb4 {[%emt 0:00:00]} 34. Rxb4 {[%emt 0:01:00]} Qd6 {[%emt 0:03:00]} 35. Qd2 {[%emt 0:00:30]} Kg7 {[%emt 0:00:00]} 36. a5 {[%emt 0:00:30]} d3 {[%emt 0:01:00]} 37. Rb6 {[%emt 0:00:30]} Qd4 {[%emt 0:00:30]} 38. Rb4 {[%emt 0:00:00]} Qd6 {[%emt 0:00:30]} 39. Rb3 {[%emt 0:01:00]} h5 {[%emt 0:00:30]} 40. h4 {[%emt 0:00:00]} Qd4 {[%emt 0:00:30]} 41. Rb4 {[%emt 0:00:00]} Qd6 {[%emt 0:00:00]} 42. Rb3 {[%emt 0:00:00]} Qd4 {[%emt 0:00:00]} 43. a6 {[%emt 0:02:00]} Ne4 {[%emt 0:00:00]} 44. Qb2 {[%emt 0:00:00]} Qxb2 {[%emt 0:00:31]} 45. Rxb2 {[%emt 0:00:00]} Nc5 {[%emt 0:00:08]} 46. Bb7 {[%emt 0:00:40]} 1/2-1/2

[Event "Belgrade Spring Open 2021"]
[Site "Belgrade"]
[Date "2021.04.05"]
[Round "5.3"]
[White "Kaasen, Tor Fredrik"]
[Black "Dimitrijevic, Dusan"]
[Result "*"]
[ECO "A31"]
[WhiteElo "2397"]
[BlackElo "2092"]
[Annotator "ChessBase"]
[PlyCount "40"]
[EventDate "2021.04.02"]
[EventType "swiss"]
[EventCountry "SRB"]
[SourceTitle "playchess.com"]
[Source "ChessBase"]
[SourceQuality "1"]
[TimeControl "5400+30"]

1. Nf3 {[%emt 0:00:00]} c5 {[%emt 0:00:21]} 2. c4 {[%emt 0:00:04]} g6 {[%emt 0:00:23]} 3. d4 {[%emt 0:01:03]} Bg7 {[%emt 0:00:20]} 4. e4 {[%emt 0:00:33]} d6 {[%emt 0:00:18]} 5. Nc3 {[%emt 0:00:50]} Na6 {[%emt 0:00:25]} 6. Be2 {[%emt 0:00:35]} cxd4 {[%emt 0:06:23]} 7. Nxd4 {[%emt 0:00:14]} Nf6 {[%emt 0:00:06]} 8. O-O {[%emt 0:01:40]} O-O {[%emt 1:25:44]} 9. Be3 {[%emt 0:00:42]} Nc5 {[%emt 0:01:44]} 10. f3 {[%emt 0:02:47]} Ne6 {[%emt 0:02:12]} 11. Qd2 {[%emt 0:03:26]} Nxd4 {[%emt 0:00:29]} 12. Bxd4 {[%emt 0:00:07]} Be6 {[%emt 0:00:05]} 13. Rad1 {[%emt 0:05:42]} a6 {[%emt 1:22:13]} 14. b3 {[%emt 0:03:37]} Nd7 {[%emt 0:20:40]} 15. f4 {[%emt 0:00:28]} Bxd4+ {[%emt 0:04:10]} 16. Qxd4 {[%emt 0:00:05]} f6 {[%emt 0:00:07]} 17. Kh1 {[%emt 1:16:37]} Qb6 {[%emt 0:11:19]} 18. Qd2 {[%emt 1:15:41]} Kh8 {[%emt 0:00:11]} 19. h3 {[%emt 1:15:15]} Rg8 {[%emt 0:12:44]} 20. Nd5 {[%emt 1:10:38]} Qd8 {[%emt 0:04:30]} *

[Event "Belgrade Spring Open 2021"]
[Site "Belgrade"]
[Date "2021.04.05"]
[Round "5.4"]
[White "Kaasen, Tor Fredrik"]
[Black "Dimitrijevic, Dusan"]
[Result "1-0"]
[ECO "A40"]
[WhiteElo "2397"]
[BlackElo "2092"]
[Annotator "ChessBase"]
[PlyCount "71"]
[EventDate "2021.04.02"]
[EventType "swiss"]
[EventCountry "SRB"]
[SourceTitle "playchess.com"]
[Source "ChessBase"]
[SourceQuality "1"]
[TimeControl "5400+30"]

1. d4 {[%emt 0:07:53]} e6 {[%emt 0:00:17]} 2. c4 {[%emt 0:01:00]} b6 {[%emt 0:00:14]} 3. a3 {[%emt 0:00:43]} Bb7 {[%emt 0:01:05]} 4. Nc3 {[%emt 0:00:24]} f5 {[%emt 0:00:33]} 5. Bf4 {[%emt 0:00:58]} Be7 {[%emt 0:01:24]} 6. e3 {[%emt 0:01:25]} Bf6 {[%emt 0:02:38]} 7. Nf3 {[%emt 0:04:41]} Ne7 {[%emt 0:01:09]} 8. Bd3 {[%emt 0:01:51]} d6 {[%emt 0:05:30]} 9. e4 {[%emt 0:04:50]} Nd7 {[%emt 0:08:11]} 10. Qe2 {[%emt 0:04:02]} O-O {[%emt 0:07:00]} 11. O-O {[%emt 0:03:05]} e5 {[%emt 0:03:07]} 12. dxe5 {[%emt 0:01:19]} dxe5 {[%emt 0:01:04]} 13. Bd2 {[%emt 0:01:03]} Nc5 {[%emt 0:03:36]} 14. Bc2 {[%emt 0:00:31]} f4 {[%emt 0:01:13]} 15. Rfd1 {[%emt 0:09:43]} Qe8 {[%emt 0:01:16]} 16. Nd5 {[%emt 0:02:52]} Nxd5 {[%emt 0:08:55]} 17. cxd5 {[%emt 0:00:26]} Ba6 {[%emt 0:02:59]} 18. Qe1 {[%emt 0:00:22]} g5 {[%emt 0:04:50]} 19. Bb4 {[%emt 0:06:47]} g4 {[%emt 0:00:34]} 20. Bxc5 {[%emt 0:02:03]} bxc5 {[%emt 0:09:57]} 21. Nd2 {[%emt 0:00:13]} Bh4 {[%emt 0:02:11]} 22. Nf1 {[%emt 0:01:36]} g3 {[%emt 0:02:28]} 23. fxg3 {[%emt 0:12:57]} fxg3 {[%emt 0:01:09]} 24. Qa5 {[%emt 0:00:51]} gxh2+ {[%emt 0:04:33]} 25. Kh1 {[%emt 0:03:59]} Qg6 {[%emt 0:00:09]} 26. Ne3 {[%emt 0:03:05]} Rf2 {[%emt 0:01:26]} 27. d6 {[%emt 0:04:13]} Be2 {[%emt 0:13:33]} 28. Qxc5 {[%emt 0:01:51]} Raf8 {[%emt 0:02:59]} 29. Bb3+ {[%emt 0:03:50]} Kg7 {[%emt 0:00:38]} 30. dxc7 {[%emt 0:03:14]} Bg4 {[%emt 0:02:38]} 31. Rd8 {[%emt 0:04:40]} Bxd8 {[%emt 0:06:26]} 32. cxd8=Q {[%emt 0:00:32]} Rxd8 {[%emt 0:00:26]} 33. Nxg4 {[%emt 0:00:27]} Qxg4 {[%emt 0:01:45]} 34. Qxf2 {[%emt 0:00:10]} Rf8 {[%emt 0:00:36]} 35. Qxa7+ {[%emt 0:00:10]} Kh6 {[%emt 0:00:14]} 36. Qe3+ {[%emt 0:01:23]} 1-0

[Event "Belgrade Spring Open 2021"]
[Site "Belgrade"]
[Date "2021.04.05"]
[Round "5.5"]
[White "Ozsakallioglu, Okan"]
[Black "Sturt, Raven"]
[Result "0-1"]
[ECO "E19"]
[WhiteElo "2249"]
[BlackElo "2490"]
[Annotator "ChessBase"]
[PlyCount "86"]
[EventDate "2021.04.02"]
[EventType "swiss"]
[EventCountry "SRB"]
[SourceTitle "playchess.com"]
[Source "ChessBase"]
[SourceQuality "1"]
[TimeControl "5400+30"]

1. d4 {[%emt 0:06:47]} Nf6 {[%emt 0:00:00]} 2. Nf3 {[%emt 0:00:19]} e6 {[%emt 0:00:00]} 3. c4 {[%emt 0:00:41]} b6 {[%emt 0:00:42]} 4. g3 {[%emt 0:01:30]} Bb7 {[%emt 0:01:22]} 5. Bg2 {[%emt 0:00:08]} Be7 {[%emt 0:00:02]} 6. O-O {[%emt 0:02:19]} O-O {[%emt 0:00:08]} 7. Nc3 {[%emt 0:06:30]} Ne4 {[%emt 0:00:09]} 8. Qc2 {[%emt 0:00:05]} Nxc3 {[%emt 0:07:53]} 9. Qxc3 {[%emt 0:00:06]} d6 {[%emt 0:00:12]} 10. b3 {[%emt 0:00:08]} Bf6 {[%emt 0:02:35]} 11. Bb2 {[%emt 0:00:13]} Nd7 {[%emt 0:00:12]} 12. Qc2 {[%emt 0:00:18]} g6 {[%emt 0:03:57]} 13. Rad1 {[%emt 0:02:28]} Qe7 {[%emt 0:07:29]} 14. e4 {[%emt 0:07:15]} Bg7 {[%emt 0:08:13]} 15. e5 {[%emt 0:02:43]} dxe5 {[%emt 0:04:46]} 16. Nxe5 {[%emt 0:00:11]} Bxg2 {[%emt 0:00:26]} 17. Kxg2 {[%emt 0:00:16]} Nxe5 {[%emt 0:04:26]} 18. dxe5 {[%emt 0:04:29]} Qc5 {[%emt 0:03:35]} 19. Qe4 {[%emt 0:00:14]} Rad8 {[%emt 0:02:07]} 20. f4 {[%emt 0:10:14]} Qa5 {[%emt 0:01:03]} 21. Qc2 {[%emt 0:01:17]} h5 {[%emt 0:00:51]} 22. Bc3 {[%emt 0:00:21]} Qc5 {[%emt 0:01:01]} 23. Qe4 {[%emt 0:00:06]} b5 {[%emt 0:04:40]} 24. Kf3 {[%emt 0:08:46]} Qa3 {[%emt 0:09:22]} 25. Qc2 {[%emt 0:02:14]} bxc4 {[%emt 0:00:56]} 26. bxc4 {[%emt 0:00:06]} Qa6 {[%emt 0:01:23]} 27. Ba1 {[%emt 0:01:50]} Rfe8 {[%emt 0:00:24]} 28. h3 {[%emt 0:00:14]} Qc6+ {[%emt 0:01:40]} 29. Ke3 {[%emt 0:06:06]} Bf8 {[%emt 0:02:55]} 30. Bd4 {[%emt 0:00:19]} a6 {[%emt 0:06:41]} 31. g4 {[%emt 0:11:28]} h4 {[%emt 0:07:14]} 32. f5 {[%emt 0:05:06]} exf5 {[%emt 0:01:41]} 33. gxf5 {[%emt 0:01:23]} Bc5 {[%emt 0:03:54]} 34. Qe4 {[%emt 0:02:44]} Bxd4+ {[%emt 0:01:01]} 35. Rxd4 {[%emt 0:00:09]} Qc5 {[%emt 0:00:02]} 36. e6 {[%emt 0:00:31]} fxe6 {[%emt 0:01:18]} 37. f6 {[%emt 0:00:43]} Kf7 {[%emt 0:00:26]} 38. Kd3 {[%emt 0:03:23]} e5 {[%emt 0:00:57]} 39. Rd5 {[%emt 0:00:45]} c6 {[%emt 0:00:33]} 40. Rxd8 {[%emt 0:03:07]} Rxd8+ {[%emt 0:00:05]} 41. Ke2 {[%emt 0:00:17]} Rd4 {[%emt 0:00:08]} 42. Qc2 {[%emt 0:00:02]} e4 {[%emt 0:00:31]} 43. Qb3 {[%emt 0:00:26]} Qh5+ {[%emt 0:01:20]} 0-1